fUSD/lending_fUSD_20240301
["ID","MTS","AMOUNT","RATE_DAILY","PERIOD"]
[315972213,1709308249526,-476.70304968,0.00022027,2]
[315972214,1709308249535,-357.09605419,0.00022027,2]
[315972215,1709308249548,-299.06394581,0.00022027,2]
[315972216,1709308249557,-545.26,0.00022027,2]
[315972217,1709308249566,-263.38118481,0.00022027,2]
[315972218,1709308250401,-500.0,0.00021917,2]
[315972219,1709308250411,-236.61881519,0.00022027,2]
[315972220,1709308250421,-500.0,0.00022027,2]
[315972221,1709308250431,-1559.45,0.00022027,2]
[315972222,1709308250441,-1141.81552981,0.00022027,2]
[315972223,1709308250453,-1959.53447019,0.00022027,2]
[315972224,1709308250463,-2785.8,0.00022027,2]
[315972225,1709308250473,-500.0,0.00022027,2]
[315972226,1709308250482,-500.0,0.00022027,2]
[315972227,1709308250496,-500.0,0.00022027,2]
[315972228,1709308250505,-2411.93205581,0.00022027,2]
[315972229,1709308250518,-987.36270815,0.00022027,2]
[315972230,1709308250564,-381.68523604,0.00022027,2]
[315972231,1709308250573,-2793.4,0.00022027,2]
[315972232,1709308250582,-500.0,0.00022027,2]
[315972233,1709308250592,-2121.53,0.00022027,2]
[315972234,1709308250602,-500.0,0.00022027,2]
[315972235,1709308250612,-1086.17,0.00022027,2]
[315972236,1709308250622,-804.74,0.00022027,2]
[315972237,1709308250631,-500.0,0.00022027,2]
[315972238,1709308250641,-11495.74,0.00022027,2]
[315972239,1709308250651,-500.0,0.00022027,2]
[315972240,1709308250661,-879.34,0.00022027,2]
[315972241,1709308250670,-1331.95,0.00022027,2]
[315972242,1709308250680,-1388.89,0.00022027,2]
[315972243,1709308250689,-500.0,0.00022027,2]
[315972244,1709308250698,-469.8984329,0.00022027,2]
[315972245,1709308250802,-500.0,0.00021917,2]
[315972246,1709308250811,-30.1015671,0.00022027,2]
[315972247,1709308250821,-500.0,0.00022027,2]
[315972248,1709308250830,-500.0,0.00022027,2]
[315972249,1709308250840,-500.0,0.00022027,2]
[315972250,1709308250849,-500.0,0.00022027,2]
[315972251,1709308250859,-500.0,0.00022027,2]
[315972252,1709308250869,-500.0,0.00022027,2]
[315972253,1709308250879,-586.64,0.00022027,2]
[315972254,1709308250888,-500.0,0.00022027,2]
[315972255,1709308250898,-500.0,0.00022027,2]
[315972256,1709308250907,-500.0,0.00022027,2]
[315972257,1709308250917,-734.4,0.00022027,2]
[315972258,1709308250926,-500.0,0.00022027,2]
[315972259,1709308250936,-1213.25,0.00022027,2]
[315972260,1709308250946,-616.54,0.00022027,2]
[315972261,1709308250955,-736.95,0.00022027,2]
[315972262,1709308250964,-839.24,0.00022027,2]
[315972263,1709308250973,-500.0,0.00022027,2]
[315972264,1709308250982,-1052.58,0.00022027,2]
[315972265,1709308250994,-516.68983291,0.00022027,2]
[315972266,1709308251016,-56.28016709,0.00022027,2]
[315972267,1709308251026,-182.81743012,0.00022027,2]
[315972268,1709308251035,-500.0,0.00022027,2]
[315972269,1709308251047,-500.0,0.00022027,2]
[315972270,1709308251057,-500.0,0.00022027,2]
[315972271,1709308251066,-500.0,0.00022027,2]
[315972272,1709308251075,-647.01,0.00022027,2]
[315972273,1709308251086,-714.3,0.00022027,2]
[315972274,1709308251095,-500.0,0.00022027,2]
[315972275,1709308251105,-3098.96,0.00022027,2]
[315972276,1709308251114,-500.0,0.00022027,2]
[315972277,1709308251173,-500.0,0.00022027,2]
[315972278,1709308251184,-670.07,0.00022027,2]
[315972279,1709308251193,-500.0,0.00022027,2]
[315972280,1709308251203,-500.0,0.00022027,2]
[315972281,1709308251213,-654.78,0.00022027,2]
[315972282,1709308251222,-500.0,0.00022027,2]
[315972283,1709308251232,-500.0,0.00022027,2]
[315972284,1709308251243,-500.0,0.00022027,2]
[315972285,1709308251253,-639.57,0.00022027,2]
[315972286,1709308251263,-500.0,0.00022027,2]
[315972287,1709308251273,-513.03,0.00022027,2]
[315972288,1709308251283,-500.0,0.00022027,2]
[315972289,1709308251292,-249.29920153,0.00022027,2]
[315972290,1709308251302,-500.0,0.00022027,2]
[315972291,1709308251311,-589.38,0.00022027,2]
[315972292,1709308251321,-500.0,0.00022027,2]
[315972293,1709308251331,-600.99,0.00022027,2]
[315972294,1709308251341,-1183.81,0.00022027,2]
[315972295,1709308251350,-824.34,0.00022027,2]
[315972296,1709308251360,-257.84195873,0.00022027,2]
[315972297,1709308251369,-500.0,0.00022027,2]
[315972298,1709308251378,-500.0,0.00022027,2]
[315972299,1709308251387,-878.22,0.00022027,2]
[315972300,1709308251397,-1789.84,0.00022027,2]
[315972301,1709308251406,-500.0,0.00022027,2]
[315972302,1709308251415,-500.0,0.00022027,2]
[315972303,1709308251424,-749.44,0.00022027,2]
[315972304,1709308251433,-500.0,0.00022027,2]
[315972305,1709308251442,-596.75,0.00022027,2]
[315972306,1709308251452,-500.0,0.00022027,2]
[315972307,1709308251461,-500.0,0.00022027,2]
[315972308,1709308251470,-706.4,0.00022027,2]
[315972309,1709308251479,-500.0,0.00022027,2]
[315972310,1709308251491,-577.18,0.00022027,2]
[315972311,1709308251501,-617.2,0.00022027,2]
[315972312,1709308251510,-500.0,0.00022027,2]
[315972313,1709308251519,-500.0,0.00022027,2]
[315972314,1709308251529,-500.0,0.00022027,2]
[315972315,1709308251538,-539.9,0.00022027,2]
[315972316,1709308251548,-500.0,0.00022027,2]
[315972317,1709308251557,-500.0,0.00022027,2]
[315972318,1709308251566,-500.0,0.00022027,2]
[315972319,1709308251575,-878.13,0.00022027,2]
[315972320,1709308251584,-661.63,0.00022027,2]
[315972321,1709308251593,-642.25,0.00022027,2]
[315972322,1709308251602,-500.0,0.00022027,2]
[315972323,1709308251611,-500.0,0.00022027,2]
[315972324,1709308251619,-500.0,0.00022027,2]
[315972325,1709308251628,-2726.76,0.00022027,2]
[315972326,1709308251637,-500.0,0.00022027,2]
[315972327,1709308251646,-500.0,0.00022027,2]
[315972328,1709308251655,-500.0,0.00022027,2]
[315972329,1709308251664,-500.0,0.00022027,2]
[315972330,1709308251673,-500.0,0.00022027,2]
[315972331,1709308251682,-500.0,0.00022027,2]
[315972332,1709308251691,-500.0,0.00022027,2]
[315972333,1709308251701,-986.55,0.00022027,2]
[315972334,1709308251710,-500.0,0.00022027,2]
[315972335,1709308251720,-500.0,0.00022027,2]
[315972336,1709308251729,-500.0,0.00022027,2]
[315972337,1709308251741,-500.0,0.00022027,2]
[315972338,1709308251750,-3333.65,0.00022027,2]
[315972339,1709308251759,-500.0,0.00022027,2]
[315972340,1709308251769,-615.82,0.00022027,2]
[315972341,1709308251778,-869.58,0.00022027,2]
[315972342,1709308251787,-500.0,0.00022027,2]
[315972343,1709308251797,-500.0,0.00022027,2]
[315972344,1709308251806,-500.0,0.00022027,2]
[315972345,1709308251816,-3857.42,0.00022027,2]
[315972346,1709308251826,-877.2,0.00022027,2]
[315972347,1709308251836,-500.0,0.00022027,2]
[315972348,1709308251846,-500.0,0.00022027,2]
[315972349,1709308251855,-500.0,0.00022027,2]
[315972350,1709308251864,-749.53,0.00022027,2]
[315972351,1709308251874,-500.0,0.00022027,2]
[315972352,1709308251883,-795.28,0.00022027,2]
[315972353,1709308251892,-530.35,0.00022027,2]
[315972354,1709308251902,-500.0,0.00022027,2]
[315972355,1709308251911,-500.0,0.00022027,2]
[315972356,1709308251921,-944.39,0.00022027,2]
[315972357,1709308251930,-500.0,0.00022027,2]
[315972358,1709308251939,-500.0,0.00022027,2]
[315972359,1709308251948,-1243.29,0.00022027,2]
[315972360,1709308251958,-500.0,0.00022027,2]
[315972361,1709308251967,-674.5,0.00022027,2]
[315972362,1709308251976,-500.0,0.00022027,2]
[315972363,1709308251985,-712.72,0.00022027,2]
[315972364,1709308251995,-500.0,0.00022027,2]
[315972365,1709308252004,-503.52,0.00022027,2]
[315972366,1709308252013,-500.0,0.00022027,2]
[315972367,1709308252023,-500.0,0.00022027,2]
[315972368,1709308252034,-500.0,0.00022027,2]
[315972369,1709308252043,-554.24,0.00022027,2]
[315972370,1709308252052,-859.28,0.00022027,2]
[315972371,1709308252062,-2913.27,0.00022027,2]
[315972372,1709308252073,-2019.21,0.00022027,2]
[315972373,1709308252082,-500.0,0.00022027,2]
[315972374,1709308252091,-852.5,0.00022027,2]
[315972375,1709308252102,-500.0,0.00022027,2]
[315972376,1709308252112,-2860.42,0.00022027,2]
[315972377,1709308252121,-725.68,0.00022027,2]
[315972378,1709308252130,-870.95,0.00022027,2]
[315972379,1709308252140,-500.0,0.00022027,2]
[315972380,1709308252149,-500.0,0.00022027,2]
[315972381,1709308252158,-500.0,0.00022027,2]
[315972382,1709308252167,-1200.58,0.00022027,2]
[315972383,1709308252177,-500.0,0.00022027,2]
[315972384,1709308252186,-500.0,0.00022027,2]
[315972385,1709308252195,-680.1,0.00022027,2]
[315972386,1709308252204,-500.0,0.00022027,2]
[315972387,1709308252214,-500.0,0.00022027,2]
[315972388,1709308252223,-161.70732472,0.00022036,2]
[315972389,1709308252232,-321.29718254,0.00022041,2]
[315972390,1709308252245,-155.94,0.00022055,2]
[315972391,1709308252254,-250.0,0.00022068,2]
[315972392,1709308252263,-204.0,0.00022085,4]
[315972393,1709308252272,-157.2,0.000221,2]
[315972394,1709308252281,-2404.3414832,0.00022104,2]
[315972395,1709308252291,-1041.45,0.0002212,2]
[315972396,1709308252301,-12415.78,0.00022136,2]
[315972397,1709308252310,-500.0,0.00022136,2]
[315972398,1709308252320,-500.0,0.00022136,2]
[315972399,1709308252330,-166.67906365,0.00022136,2]
[315972400,1709308252339,-500.0,0.00022136,2]
[315972401,1709308252348,-500.0,0.00022136,2]
[315972402,1709308252357,-500.0,0.00022136,2]
[315972403,1709308252366,-500.0,0.00022136,2]
[315972404,1709308252375,-500.0,0.00022136,2]
[315972405,1709308252385,-500.0,0.00022136,2]
[315972406,1709308252394,-500.0,0.00022136,2]
[315972407,1709308252404,-500.0,0.00022136,2]
[315972408,1709308252415,-500.0,0.00022136,2]
[315972409,1709308252425,-500.0,0.00022136,2]
[315972410,1709308252434,-500.0,0.00022136,2]
[315972411,1709308252443,-500.0,0.00022136,2]
[315972412,1709308252451,-500.0,0.00022136,2]
[315972413,1709308252460,-500.0,0.00022136,2]
[315972414,1709308252470,-500.0,0.00022136,2]
[315972415,1709308252479,-500.0,0.00022136,2]
[315972416,1709308252491,-500.0,0.00022136,2]
[315972417,1709308252500,-500.0,0.00022136,2]
[315972418,1709308252509,-500.0,0.00022136,2]
[315972419,1709308252518,-500.0,0.00022136,2]
[315972420,1709308252527,-500.0,0.00022136,2]
[315972421,1709308252537,-500.0,0.00022136,2]
[315972422,1709308252547,-500.0,0.00022136,2]
[315972423,1709308252557,-500.0,0.00022136,2]
[315972424,1709308252568,-500.0,0.00022136,2]
[315972425,1709308252578,-500.0,0.00022136,2]
[315972426,1709308252588,-500.0,0.00022136,2]
[315972427,1709308252598,-500.0,0.00022136,2]
[315972428,1709308252608,-500.0,0.00022136,2]
[315972429,1709308252618,-500.0,0.00022136,2]
[315972430,1709308252627,-500.0,0.00022136,2]
[315972431,1709308252636,-369.36784005,0.00022136,2]
[315972432,1709308281216,322.75321824,9e-05,2]
[315972434,1709308292786,417.33670123,0.0001,2]
[315972435,1709308297292,609.91008053,0.00011,2]
[315972436,1709308315173,1911.0,6.94e-05,2]
[315972437,1709308315199,26646.19123212,6.94e-05,2]
[315972438,1709308330139,322.80407294,0.00011,2]
[315972439,1709308346158,322.80407294,0.00011,2]
[315972440,1709308367704,151.0,0.00024756,120]
[315972441,1709308368144,297.2571564,0.00011,2]
[315972493,1709309083388,-165.70840078,0.00014086,2]
[315972494,1709309083420,-161.57833347,0.00014087,2]
[315972495,1709309083452,-2467.41592926,0.00014183,5]
[315972496,1709309083482,-5337.57667588,0.00014183,2]
[315972497,1709309083513,-3351.57340589,0.00014184,2]
[315972498,1709309083542,-150.0,0.00014187,2]
[315972499,1709309083574,-300.0,0.00014187,2]
[315972500,1709309083602,-719.75786608,0.000142,2]
[315972501,1709309083632,-800.0,0.00015,10]
[315972502,1709309083664,-420.0,0.0001554,2]
[315972503,1709309083697,-210.0,0.00015606,2]
[315972504,1709309083726,-587.0,0.00017021,2]
[315972505,1709309083757,-150.0,0.000171,2]
[315972506,1709309083786,-293.0,0.00017166,2]
[315972507,1709309083816,-150.99,0.00017763,2]
[315972508,1709309083845,-1157.14,0.00017763,2]
[315972509,1709309083873,-1538.71479247,0.00018,2]
[315972510,1709309083902,-11463.62457513,0.00018,2]
[315972511,1709309083932,-1097.10255049,0.00018,2]
[315972512,1709309083963,-2400.12,0.00018,2]
[315972513,1709309083993,-204.0,0.0001809,2]
[315972514,1709309084021,-1338.95305567,0.000181,2]
[315972515,1709309084048,-7636.05,0.000181,2]
[315972516,1709309084076,-219.0,0.00018883,2]
[315972517,1709309084384,-150.0,0.00019027,2]
[315972518,1709309084415,-3969.88709902,0.0001908,2]
[315972534,1709309198185,-151.23441357,0.00018683,2]
[315972551,1709309431895,-1356.89507759,0.00017463,2]
[315972552,1709309431908,-1285.10189788,0.00017463,2]
[315972553,1709309431920,-363.22155998,0.00017463,2]
[315972554,1709309431953,-346.35487044,0.00017463,2]
[315972555,1709309431962,-271.57433382,0.00017464,2]
[315972556,1709309431973,-457.97118147,0.00017464,2]
[315972557,1709309432072,-4762.74676461,0.00017464,2]
[315972558,1709309432081,-527.73427123,0.00017464,2]
[315972559,1709309432090,-165.70840078,0.00017465,2]
[315972560,1709309432100,-1285.52369914,0.00017465,5]
[315972561,1709309432109,-5337.57667588,0.00017465,2]
[315972562,1709309432118,-1177.79,0.00017467,2]
[315972563,1709309432127,-26.76558643,0.00018683,2]
[315972564,1709309432137,-2994.7473,0.0001899,2]
[315972565,1709309432148,-2167.9137,0.0001899,2]
[315972566,1709309432158,-888.73585882,0.00019089,7]
[315972567,1709309432167,-16211.36,0.0001909,2]
[315972568,1709309432176,-500.0,0.0001912,2]
[315972569,1709309432186,-178.71,0.00019178,2]
[315972570,1709309432195,-150.99,0.00019178,2]
[315972571,1709309432204,-250.0,0.00019178,2]
[315972572,1709309432214,-204.0,0.00019185,2]
[315972573,1709309432223,-178.0,0.00019231,2]
[315972574,1709309432234,-845.4,0.00019236,2]
[315972575,1709309432243,-250.0,0.00019236,2]
[315972576,1709309432253,-1223.82,0.00019244,2]
[315972577,1709309432262,-1000.0,0.00019274,2]
[315972578,1709309432272,-271.97,0.00019274,2]
[315972579,1709309432281,-232.3,0.00019283,2]
[315972580,1709309432290,-499.99,0.00019306,2]
[315972581,1709309432300,-5112.93,0.00019316,2]
[315972582,1709309432309,-1033.59,0.0001935,2]
[315972583,1709309432318,-923.75,0.00019384,2]
[315972584,1709309432328,-11447.72,0.0001943,2]
[315972585,1709309432337,-200.0,0.0001948,2]
[315972586,1709309432347,-268.27,0.00019481,2]
[315972587,1709309432357,-944.95774311,0.00019482,2]
[315972588,1709309432370,-564.46,0.00019482,2]
[315972589,1709309432382,-2059.48225689,0.00019482,2]
[315972590,1709309432392,-170.48,0.0001951,2]
[315972592,1709309432402,-683.42,0.00019577,2]
[315972593,1709309432412,-177.57,0.00019588,2]
[315972594,1709309432422,-188.665596,0.00019647,2]
[315972595,1709309432432,-14473.35,0.00019648,2]
[315972596,1709309432442,-179.26,0.00019679,2]
[315972597,1709309432452,-1177.79,0.0001973,2]
[315972598,1709309432463,-354.3,0.00019779,2]
[315972599,1709309432472,-350.0,0.0002,3]
[315972600,1709309432483,-4961.34,0.00020208,2]
[315972601,1709309432493,-2648.0,0.00020523,2]
[315972602,1709309432503,-20031.75565759,0.0002055,2]
[315972603,1709309432512,-2462.52,0.00020877,2]
[315972604,1709309432521,-178.59534656,0.00020928,4]
[315972605,1709309432530,-171.0,0.00020936,2]
[315972606,1709309432540,-614.0,0.00020936,2]
[315972607,1709309432549,-157.0,0.00020936,2]
[315972608,1709309432559,-2411.31,0.00020945,2]
[315972609,1709309432568,-2423.94,0.00020945,2]
[315972610,1709309432578,-790.32,0.00020951,2]
[315972611,1709309432587,-10007.52083331,0.00021,2]
[315972612,1709309432596,-168.09,0.00021096,2]
[315972613,1709309432605,-828.22,0.00021096,2]
[315972614,1709309432615,-204.0,0.00021334,5]
[315972615,1709309432624,-181.86371126,0.00021455,6]
[315972616,1709309432633,-181.86371126,0.00021462,6]
[315972617,1709309432642,-181.86371126,0.00021472,6]
[315972618,1709309432651,-172.17,0.00021475,2]
[315972619,1709309432661,-181.86371126,0.00021498,6]
[315972620,1709309432670,-1376.71760262,0.00021577,2]
[315972621,1709309432679,-174.97,0.00021612,2]
[315972622,1709309432689,-171.0,0.00021621,2]
[315972623,1709309432698,-614.0,0.00021621,2]
[315972624,1709309432706,-157.0,0.00021621,2]
[315972625,1709309432716,-1000.0,0.00021683,2]
[315972626,1709309432725,-200.0,0.00021687,2]
[315972627,1709309432737,-1000.0,0.000217,2]
[315972628,1709309432746,-9642.55192981,0.000218,2]
[315972629,1709309432755,-36803.36044521,0.000218,2]
[315972630,1709309432765,-1153.34117616,0.000218,2]
[315972631,1709309432775,-90825.5805,0.00021817,2]
[315972632,1709309432784,-1376.71760262,0.00021824,2]
[315972633,1709309432794,-1587.12490766,0.000219,2]
[315972634,1709309432803,-6099.52135316,0.000219,2]
[315972635,1709309432812,-734.45144058,0.000219,2]
[315972636,1709309432821,-500.0,0.00021917,2]
[315972637,1709309432830,-24.37393819,0.00021917,2]
[315972638,1709309432854,-475.62606181,0.00021917,2]
[315972639,1709309432863,-500.0,0.00021917,2]
[315972640,1709309432872,-500.0,0.00021917,2]
[315972641,1709309432881,-500.0,0.00021917,2]
[315972642,1709309432890,-22.68965717,0.00021917,2]
[315972643,1709309432902,-741.81034283,0.00021917,2]
[315972644,1709309432911,-500.0,0.00021917,2]
[315972645,1709309432920,-500.0,0.00021917,2]
[315972646,1709309432930,-500.0,0.00021917,2]
[315972647,1709309432938,-500.0,0.00021917,2]
[315972648,1709309432947,-500.0,0.00021917,2]
[315972649,1709309432956,-500.0,0.00021917,2]
[315972650,1709309432965,-500.0,0.00021917,2]
[315972651,1709309432975,-508.01161448,0.00021917,2]
[315972652,1709309433133,-612.97,0.00021917,2]
[315972653,1709309433142,-500.0,0.00021917,2]
[315972654,1709309433152,-500.0,0.00021917,2]
[315972655,1709309433162,-570.83461361,0.00021917,2]
[315972656,1709309433172,-598.77,0.00021917,2]
[315972657,1709309433182,-275.83810258,0.00021917,2]
[315972658,1709309433192,-500.0,0.00021917,2]
[315972659,1709309433202,-500.0,0.00021917,2]
[315972660,1709309433212,-500.0,0.00021917,2]
[315972661,1709309433222,-500.0,0.00021917,2]
[315972662,1709309433234,-500.0,0.00021917,2]
[315972663,1709309433244,-500.0,0.00021917,2]
[315972664,1709309433254,-450.0,0.00021917,2]
[315972665,1709309433263,-500.0,0.00021917,2]
[315972666,1709309433273,-500.0,0.00021917,2]
[315972667,1709309433283,-500.0,0.00021917,2]
[315972668,1709309433293,-500.0,0.00021917,2]
[315972669,1709309433302,-478.14094007,0.00021917,2]
[315972670,1709309433311,-500.0,0.00021917,2]
[315972671,1709309433321,-500.0,0.00021917,2]
[315972672,1709309433330,-500.0,0.00021917,2]
[315972673,1709309433340,-500.0,0.00021917,2]
[315972674,1709309433349,-1000.0,0.00021917,2]
[315972675,1709309433360,-500.0,0.00021917,2]
[315972676,1709309433370,-500.0,0.00021917,2]
[315972677,1709309433381,-500.0,0.00021917,2]
[315972678,1709309433391,-500.0,0.00021917,2]
[315972679,1709309433401,-500.0,0.00021917,2]
[315972680,1709309433410,-500.0,0.00021917,2]
[315972681,1709309433419,-500.0,0.00021917,2]
[315972682,1709309433431,-641.06,0.00021917,2]
[315972683,1709309433440,-500.0,0.00021917,2]
[315972684,1709309433450,-500.0,0.00021917,2]
[315972685,1709309433460,-500.0,0.00021917,2]
[315972686,1709309433470,-500.0,0.00021917,2]
[315972687,1709309433480,-500.0,0.00021917,2]
[315972688,1709309433492,-500.0,0.00021917,2]
[315972689,1709309433502,-500.0,0.00021917,2]
[315972690,1709309433512,-500.0,0.00021917,2]
[315972691,1709309433521,-500.0,0.00021917,2]
[315972692,1709309433531,-210.18731503,0.00021917,2]
[315972693,1709309433541,-500.0,0.00021917,2]
[315972694,1709309433550,-358.5969014,0.00021917,2]
[315972695,1709309433565,-141.4030986,0.00021917,2]
[315972696,1709309433575,-500.0,0.00021917,2]
[315972697,1709309433584,-500.0,0.00021917,2]
[315972698,1709309433595,-500.0,0.00021917,2]
[315972699,1709309433604,-194.2369014,0.00021917,2]
[315972700,1709309433617,-305.7630986,0.00021917,2]
[315972701,1709309433626,-500.0,0.00021917,2]
[315972702,1709309433635,-94.2369014,0.00021917,2]
[315972703,1709309433648,-405.7630986,0.00021917,2]
[315972704,1709309433657,-500.0,0.00021917,2]
[315972705,1709309433667,-500.0,0.00021917,2]
[315972706,1709309433676,-500.0,0.00021917,2]
[315972707,1709309433686,-500.0,0.00021917,2]
[315972708,1709309433695,-500.0,0.00021917,2]
[315972709,1709309433704,-500.0,0.00021917,2]
[315972710,1709309433714,-500.0,0.00021917,2]
[315972711,1709309433723,-500.0,0.00021917,2]
[315972712,1709309433733,-500.0,0.00021917,2]
[315972713,1709309433743,-500.0,0.00021917,2]
[315972714,1709309433752,-500.0,0.00021917,2]
[315972715,1709309433762,-500.0,0.00021917,2]
[315972716,1709309433772,-500.0,0.00021917,2]
[315972717,1709309433781,-500.0,0.00021917,2]
[315972718,1709309433793,-500.0,0.00021917,2]
[315972719,1709309433803,-500.0,0.00021917,2]
[315972720,1709309433812,-500.0,0.00021917,2]
[315972721,1709309433822,-500.0,0.00021917,2]
[315972722,1709309433831,-504.0752559,0.00021917,2]
[315972723,1709309433858,-120.78671303,0.00021917,2]
[315972724,1709309433867,-230.2144944,0.00021917,2]
[315972728,1709309437841,-155.14,0.00021131,2]
[315972729,1709309437852,-269.7855056,0.00021917,2]
[315972730,1709309437861,-500.0,0.00021917,2]
[315972731,1709309437870,-500.0,0.00021917,2]
[315972732,1709309437880,-500.0,0.00021917,2]
[315972733,1709309437889,-271.1666653,0.00021917,2]
[315972734,1709309437899,-500.0,0.00021917,2]
[315972735,1709309437908,-492.83259551,0.00021917,2]
[315972736,1709309437917,-209.27020577,0.00021917,2]
[315972737,1709309437926,-422.67456478,0.00021917,2]
[315972738,1709309437936,-500.0,0.00021917,2]
[315972739,1709309437946,-500.0,0.00021917,2]
[315972740,1709309437955,-500.0,0.00021917,2]
[315972741,1709309437964,-500.0,0.00021917,2]
[315972742,1709309437973,-500.0,0.00021917,2]
[315972743,1709309437983,-500.0,0.00021917,2]
[315972744,1709309437994,-500.0,0.00021917,2]
[315972745,1709309438002,-500.0,0.00021917,2]
[315972746,1709309438011,-500.0,0.00021917,2]
[315972747,1709309438021,-500.0,0.00021917,2]
[315972748,1709309438030,-500.0,0.00021917,2]
[315972749,1709309438039,-500.0,0.00021917,2]
[315972750,1709309438049,-500.0,0.00021917,2]
[315972751,1709309438058,-500.0,0.00021917,2]
[315972752,1709309438067,-500.0,0.00021917,2]
[315972753,1709309438077,-500.0,0.00021917,2]
[315972754,1709309438086,-500.0,0.00021917,2]
[315972755,1709309438096,-447.51331986,0.00021917,2]
[315972756,1709309438106,-430.44364408,0.00021917,2]
[315972757,1709309438119,-69.55635592,0.00021917,2]
[315972758,1709309438128,-288.44270182,0.00021917,2]
[315972783,1709309438512,-211.55729818,0.00021917,2]
[315972784,1709309438522,-500.0,0.00021917,2]
[315972785,1709309438532,-51.92554178,0.00021917,2]
[315972787,1709309438544,-448.07445822,0.00021917,2]
[315972789,1709309438555,-293.20278133,0.00021917,2]
[315972981,1709309440395,-376.0,0.00020451,2]
[315972983,1709309440405,-206.79721867,0.00021917,2]
[315972985,1709309440415,-500.0,0.00021917,2]
[315972987,1709309440425,-97.19019516,0.00021917,2]
[315972992,1709309440463,-402.80980484,0.00021917,2]
[315972994,1709309440473,-161.39383876,0.00021917,2]
[315972997,1709309440490,-338.60616124,0.00021917,2]
[315972998,1709309440499,-500.0,0.00021917,2]
[315973000,1709309440509,-500.0,0.00021917,2]
[315973002,1709309440518,-500.0,0.00021917,2]
[315973005,1709309440528,-186.63849863,0.00021917,2]
[315973007,1709309440538,-500.0,0.00021917,2]
[315973009,1709309440547,-269.23702867,0.00021917,2]
[315973010,1709309440557,-500.0,0.00021917,2]
[315973012,1709309440567,-500.0,0.00021917,2]
[315973014,1709309440576,-500.0,0.00021917,2]
[315973016,1709309440585,-500.0,0.00021917,2]
[315973018,1709309440595,-500.0,0.00021917,2]
[315973020,1709309440604,-500.0,0.00021917,2]
[315973022,1709309440614,-500.0,0.00021917,2]
[315973024,1709309440623,-500.0,0.00021917,2]
[315973026,1709309440633,-500.0,0.00021917,2]
[315973028,1709309440642,-156.64370915,0.00021917,2]
[315973030,1709309440651,-150.0,0.00021917,2]
[315973032,1709309440660,-500.0,0.00021917,2]
[315973034,1709309440669,-500.0,0.00021917,2]
[315973036,1709309440678,-500.0,0.00021917,2]
[315973038,1709309440687,-500.0,0.00021917,2]
[315973040,1709309440696,-500.0,0.00021917,2]
[315973042,1709309440706,-500.0,0.00021917,2]
[315973044,1709309440715,-500.0,0.00021917,2]
[315973046,1709309440724,-500.0,0.00021917,2]
[315973048,1709309440734,-500.0,0.00021917,2]
[315973050,1709309440746,-500.0,0.00021917,2]
[315973052,1709309440755,-500.0,0.00021917,2]
[315973054,1709309440764,-500.0,0.00021917,2]